bitfinex/quotes_SOLUSD_20251120
["timestamp","ask_amount","ask_price","bid_price","bid_amount"]
[1763629008318,1.66,143.36,143.35,4.76143956]
[1763629008542,6.97447342,143.38,143.35,4.76143956]
[1763629008836,1.66,143.36,143.35,4.09143956]
[1763629009328,1.66,143.36,143.35,4.76143956]
[1763629009545,1.66,143.36,143.35,0.67]
[1763629010497,6.97593303,143.35,143.32,4.09143956]
[1763629010704,6.97593303,143.35,143.34,0.7]
[1763629010922,8.63593303,143.35,143.34,0.7]
[1763629011299,8.63593303,143.35,143.31,11.16896583]
[1763629011600,8.63593303,143.35,143.33,0.7]
[1763629012616,8.63593303,143.35,143.33,4.79143956]
[1763629012617,1.66,143.35,143.33,4.79143956]
[1763629012928,1.66,143.35,143.34,4.09143956]
[1763629013108,1.66,143.35,143.34,4.79143956]
[1763629014522,1.66,143.35,143.34,0.7]
[1763629014704,1.66,143.35,143.34,4.79143956]
[1763629017724,1.66,143.35,143.34,0.7]
[1763629018827,1.66,143.35,143.34,4.79143956]
[1763629020807,1.66,143.35,143.34,0.7]
[1763629021327,1.66,143.35,143.34,4.79143956]
[1763629022751,1.66,143.35,143.34,11.76785926]
[1763629022908,6.97416151,143.39,143.34,11.76785926]
[1763629023215,6.97301443,143.41,143.38,4.09143956]
[1763629023544,1.66,143.4,143.38,4.09143956]
[1763629023710,1.66,143.4,143.38,4.79143956]
[1763629024429,6.97398702,143.39,143.38,0.7]
[1763629031636,1.66,143.4,143.38,4.79143956]
[1763629031931,1.66,143.4,143.39,4.09143956]
[1763629032235,1.66,143.4,143.39,4.79143956]
[1763629032613,1.66,143.4,143.39,0.7]
[1763629033834,1.66,143.4,143.36,4.79143956]
[1763629033835,13.39499399,143.4,143.36,4.79143956]
[1763629034041,0.67,143.39,143.36,4.79143956]
[1763629034348,1.66,143.38,143.37,0.7]
[1763629035523,1.66,143.38,143.37,4.79143956]
[1763629038333,1.66,143.38,143.37,11.76639945]
[1763629038648,1.66,143.4,143.37,11.76639945]
[1763629038850,1.66,143.4,143.39,4.09143956]
[1763629039245,1.66,143.4,143.39,4.79143956]
[1763629039645,1.66,143.4,143.39,11.76542658]
[1763629041027,1.66,143.41,143.39,11.76542658]
[1763629041230,1.66,143.41,143.4,0.7]
[1763629041453,1.66,143.41,143.4,4.79143956]
[1763629041629,1.66,143.41,143.4,11.76494025]
[1763629042046,1.66,143.41,143.4,0.7]
[1763629042250,1.66,143.41,143.4,11.76494025]
[1763629044524,18.84096,143.45,143.4,11.76494025]
[1763629044754,18.84096,143.45,143.42,4.09143956]
[1763629044755,1.64,143.44,143.42,4.09143956]
[1763629045155,7.69030114,143.47,143.43,4.79143956]
[1763629045457,7.69030114,143.47,143.44,4.09143956]
[1763629045458,1.64,143.46,143.44,4.09143956]
[1763629045755,1.64,143.46,143.44,4.79143956]
[1763629047330,8.61061006,143.46,143.43,4.09143956]
[1763629047553,9.33061006,143.46,143.43,4.79143956]
[1763629047940,9.33061006,143.46,143.44,4.09143956]
[1763629048654,7.68972742,143.48,143.45,4.09143956]
[1763629048831,1.64,143.47,143.46,0.66]
[1763629049352,1.64,143.47,143.45,3.27562231]
[1763629049551,1.64,143.47,143.45,0.66]
[1763629050357,2.36,143.47,143.45,3.27562231]
[1763629050728,1.64,143.47,143.45,3.27562231]
[1763629051129,9.33027212,143.47,143.44,2.61562231]
[1763629051329,9.33027212,143.47,143.44,3.27562231]
[1763629051563,1.64,143.47,143.45,3.27562231]
[1763629053564,1.64,143.47,143.45,0.66]
[1763629053767,1.64,143.47,143.45,3.27562231]
[1763629053948,7.68929799,143.49,143.46,3.27562231]
[1763629054267,1.64,143.48,143.46,3.27562231]
[1763629056059,6.96929799,143.49,143.47,0.66]
[1763629056259,1.64,143.48,143.47,3.27562231]
[1763629056555,7.68874972,143.5,143.47,3.27562231]
[1763629056856,1.64,143.49,143.47,3.27562231]
[1763629057243,8.60924955,143.49,143.47,3.27562231]
[1763629057441,8.60924955,143.49,143.46,2.61562231]
[1763629057669,1.64,143.49,143.48,2.61562231]
[1763629058037,1.64,143.49,143.48,3.27562231]
[1763629058235,1.64,143.49,143.48,0.66]
[1763629058665,1.64,143.49,143.47,2.61562231]
[1763629058965,0.72,143.48,143.45,3.27562231]
[1763629059339,0.72,143.48,143.44,9.58684289]
[1763629059540,0.72,143.48,143.45,0.66]
[1763629059734,3.33562231,143.48,143.43,0.66]
[1763629059938,3.33562231,143.48,143.43,20.73658231]
[1763629060146,0.72,143.47,143.44,3.27562231]
[1763629060381,1.64,143.46,143.44,3.27562231]
[1763629060732,1.64,143.46,143.45,3.27562231]
[1763629060964,1.64,143.46,143.45,2.61562231]
[1763629061137,1.64,143.46,143.44,3.27562231]
[1763629061339,1.64,143.47,143.45,3.27562231]
[1763629061662,1.64,143.47,143.46,2.61562231]
[1763629061838,1.64,143.47,143.46,3.27562231]
[1763629062789,1.64,143.47,143.46,10.24620644]
[1763629063253,0.72,143.5,143.46,10.24620644]
[1763629063449,1.64,143.48,143.47,3.27562231]
[1763629064272,1.64,143.48,143.47,10.24572058]
[1763629064770,0.72,143.53,143.47,27.67096627]
[1763629064974,2.36,143.53,143.5,2.61562231]
[1763629065286,2.36,143.53,143.5,3.27562231]
[1763629065771,2.36,143.53,143.51,0.66]
[1763629065772,1.64,143.53,143.51,0.66]
[1763629066345,2.36,143.53,143.51,0.66]
[1763629066545,2.36,143.53,143.5,3.27562231]
[1763629067168,9.3273053,143.53,143.5,3.27562231]
[1763629068776,1.64,143.53,143.52,2.61562231]
[1763629068983,1.84,143.54,143.52,2.61562231]
[1763629069149,1.84,143.54,143.53,2.61562231]
[1763629069348,1.84,143.54,143.52,0.66]
[1763629069679,1.84,143.54,143.52,3.27562231]
[1763629069885,1.84,143.54,143.53,2.61562231]
[1763629070248,1.84,143.54,143.52,3.33562231]
[1763629070864,2.52,143.54,143.51,10.30349487]
[1763629071358,8.80670932,143.54,143.51,2.61562231]
[1763629071586,0.68,143.53,143.51,2.61562231]
[1763629072095,0.68,143.53,143.5,10.30419012]
[1763629072257,0.2,143.54,143.51,2.61562231]
[1763629072461,1.64,143.53,143.52,2.61562231]
[1763629072784,1.64,143.53,143.52,3.33562231]
[1763629073580,1.64,143.53,143.51,3.33562231]
[1763629073881,2.32,143.53,143.51,2.61562231]
[1763629074084,1.64,143.53,143.51,3.33562231]
[1763629075792,1.64,143.53,143.52,3.33562231]
[1763629077470,1.64,143.53,143.52,10.30329232]
[1763629077662,0.2,143.54,143.52,10.30329232]
[1763629077966,0.2,143.54,143.53,3.33562231]
[1763629078665,0.2,143.54,143.53,2.61562231]
[1763629079062,0.2,143.54,143.53,3.33562231]
[1763629079684,0.2,143.54,143.52,6.96767001]
[1763629079685,0.2,143.54,143.52,9.58329232]
[1763629079868,0.2,143.54,143.53,3.33562231]
[1763629080559,0.2,143.54,143.52,10.30329232]
[1763629080797,0.2,143.54,143.53,2.61562231]
[1763629080974,7.84683706,143.54,143.5,3.33562231]
[1763629081173,0.88,143.54,143.51,0.72]
[1763629081596,7.84676468,143.54,143.51,0.72]
[1763629082568,7.84676468,143.54,143.51,3.33562231]
[1763629083491,7.84676468,143.54,143.53,2.61562231]
[1763629083492,1.84,143.54,143.53,2.61562231]
[1763629083670,1.84,143.54,143.53,3.33562231]
[1763629084873,1.84,143.54,143.53,10.30280687]
[1763629086473,0.2,143.54,143.53,10.30280687]
[1763629089297,0.2,143.54,143.53,6.96718456]
[1763629089594,0.2,143.54,143.53,10.30280687]
[1763629090002,0.2,143.54,143.52,7.68766045]
[1763629090204,0.88,143.54,143.53,18.12096]
[1763629090374,0.2,143.54,143.53,20.73658231]
[1763629091074,0.2,143.54,143.53,21.45658231]
[1763629092198,0.2,143.54,143.53,28.42376687]
[1763629094712,0.2,143.54,143.53,27.70376687]
[1763629094893,12.10238114,143.54,143.47,5.83167496]
[1763629095203,2.61562231,143.51,143.46,2.61562231]
[1763629095410,1.64,143.5,143.46,2.61562231]
[1763629095580,2.32,143.5,143.47,2.61562231]
[1763629095779,2.32,143.5,143.46,0.72]
[1763629095780,0.68,143.49,143.46,0.72]
[1763629095976,0.68,143.49,143.47,2.61562231]
[1763629097311,0.68,143.49,143.46,10.30601297]
[1763629097683,1.64,143.5,143.48,2.61562231]
[1763629098100,2.32,143.5,143.47,2.61562231]
[1763629098302,2.32,143.5,143.47,3.33562231]
[1763629098994,8.60879505,143.5,143.47,2.61562231]
[1763629099190,0.68,143.49,143.47,2.61562231]
[1763629099682,0.68,143.49,143.46,10.30601297]
[1763629100113,0.68,143.49,143.46,9.58601297]
[1763629100413,0.68,143.49,143.47,2.61562231]
[1763629100787,7.6783575,143.51,143.48,3.29562231]
[1763629100994,1.66,143.51,143.5,2.61562231]
[1763629102624,9.33815832,143.51,143.48,2.61562231]
[1763629103209,9.33815832,143.51,143.47,2.61562231]
[1763629103210,0.71,143.5,143.47,2.61562231]
[1763629103886,0.71,143.5,143.44,41.38389586]
[1763629103887,0.71,143.5,143.44,24.63542421]
[1763629104086,6.96912676,143.49,143.46,2.61562231]
[1763629104311,1.66,143.48,143.46,2.61562231]
[1763629104823,1.66,143.48,143.45,0.68]
[1763629105004,1.66,143.48,143.46,3.29562231]
[1763629107895,1.66,143.48,143.47,2.61562231]
[1763629108516,1.66,143.48,143.47,3.32562231]
[1763629108906,7.64903176,143.5,143.47,3.32562231]
[1763629109103,1.66,143.49,143.47,3.32562231]
[1763629110730,1.66,143.49,143.48,3.32562231]
[1763629111021,0.68,143.5,143.47,4.08492827]
[1763629111322,0.68,143.5,143.46,11.76541931]
[1763629111708,0.68,143.5,143.47,4.08492827]
[1763629111905,1.66,143.51,143.47,4.79492827]
[1763629112098,0.68,143.5,143.47,4.79492827]
[1763629112905,7.64893806,143.5,143.47,4.79492827]
[1763629113323,8.6283705,143.51,143.48,4.79492827]
[1763629113521,9.3083705,143.51,143.48,4.79492827]
[1763629113726,9.3083705,143.51,143.48,0.71]
[1763629114228,9.3083705,143.51,143.47,11.76498794]
[1763629115101,2.34,143.51,143.47,11.76498794]
[1763629115297,1.66,143.51,143.48,4.79492827]
[1763629115529,2.34,143.51,143.48,4.79492827]
[1763629115701,1.66,143.51,143.48,4.08492827]
[1763629115902,1.66,143.51,143.49,0.71]
[1763629118704,7.16686984,143.54,143.5,4.08492827]
[1763629118907,1.86,143.54,143.51,4.79492827]
[1763629119132,1.86,143.54,143.52,4.79492827]
[1763629119318,9.50678441,143.54,143.5,11.76321739]
[1763629119502,9.50678441,143.54,143.51,0.71]
[1763629119704,9.50678441,143.54,143.51,4.79492827]
[1763629122306,1.86,143.54,143.52,0.71]
[1763629122506,1.86,143.54,143.52,4.79492827]
[1763629122929,1.86,143.54,143.52,0.71]
[1763629123800,8.82671341,143.54,143.52,0.71]
[1763629124532,8.82671341,143.54,143.51,4.08492827]
[1763629124828,9.50671341,143.54,143.51,4.79492827]
[1763629128130,9.50671341,143.54,143.51,4.75131627]
[1763629128518,9.50671341,143.54,143.51,0.71]
[1763629128718,0.68,143.53,143.5,4.08492827]
[1763629128915,0.68,143.53,143.5,4.79492827]
[1763629129712,8.82671341,143.54,143.5,4.08492827]
[1763629129928,9.50671341,143.54,143.51,0.71]
[1763629130746,0.72,143.53,143.5,0.68]
[1763629130945,4.80492827,143.53,143.48,4.76492827]
[1763629131240,4.80492827,143.53,143.49,0.68]
[1763629131419,0.72,143.52,143.49,4.76492827]
[1763629131624,1.64,143.51,143.49,4.76492827]
[1763629133614,0.2,143.54,143.5,0.68]
[1763629133816,0.2,143.54,143.53,4.08492827]
[1763629134639,0.92,143.54,143.51,4.08492827]
[1763629135217,0.92,143.54,143.51,4.76492827]
[1763629136746,0.92,143.54,143.52,4.08492827]
[1763629137544,7.88674975,143.54,143.51,4.08492827]
[1763629137744,7.88674975,143.54,143.49,5.83446421]
[1763629137931,7.88674975,143.54,143.51,4.76492827]
[1763629139053,0.2,143.54,143.52,4.08492827]
[1763629139227,1.64,143.53,143.52,4.76492827]
[1763629140140,1.64,143.53,143.52,11.73259828]
[1763629140348,1.64,143.53,143.5,6.96824341]
[1763629140528,2.36,143.53,143.52,4.08492827]
[1763629140732,1.64,143.53,143.52,4.08492827]
[1763629141348,9.32727125,143.53,143.49,13.48353065]
[1763629141643,9.32727125,143.53,143.5,4.76492827]
[1763629141853,2.36,143.53,143.5,4.76492827]
[1763629142026,2.36,143.53,143.5,4.08492827]
[1763629142349,2.36,143.53,143.5,11.0535473]
[1763629142535,2.36,143.53,143.49,16.88836812]
[1763629142536,0.72,143.52,143.49,16.88836812]
[1763629142737,0.72,143.52,143.49,11.73390391]
[1763629143449,8.60726205,143.53,143.5,4.76492827]
[1763629143650,9.32726205,143.53,143.5,4.76492827]
[1763629144018,0.72,143.52,143.49,7.64897564]
[1763629144251,0.72,143.52,143.5,4.08492827]
[1763629146151,7.68773408,143.52,143.49,4.76492827]
[1763629146447,11.77266235,143.52,143.47,4.08492827]
[1763629146746,4.80492827,143.51,143.46,22.88588827]
[1763629146924,1.64,143.5,143.46,29.85618374]
[1763629147132,2.36,143.5,143.47,4.76492827]
[1763629148758,0.72,143.51,143.48,4.76492827]
[1763629148941,1.64,143.5,143.48,4.76492827]
[1763629150544,1.64,143.5,143.46,4.08492827]
[1763629150545,0.72,143.49,143.46,4.08492827]
[1763629151053,0.72,143.49,143.47,4.08492827]
[1763629151636,0.92,143.54,143.48,4.76492827]
[1763629151835,1.64,143.53,143.51,4.08492827]
[1763629152036,9.32731744,143.53,143.49,11.05369828]
[1763629152251,9.32731744,143.53,143.49,11.73369828]
[1763629152252,0.72,143.52,143.49,11.73369828]
[1763629153337,0.72,143.52,143.49,4.76492827]
[1763629153664,0.72,143.52,143.49,11.73405246]
[1763629153959,7.68781989,143.52,143.49,4.76492827]
[1763629156467,0.72,143.51,143.48,4.08492827]
[1763629156638,1.64,143.5,143.48,4.76492827]
[1763629158165,1.64,143.5,143.49,4.08492827]
[1763629158540,1.64,143.5,143.48,4.76492827]
[1763629159137,1.64,143.5,143.48,11.73451284]
[1763629159559,1.64,143.5,143.48,4.76492827]
[1763629162264,1.64,143.5,143.48,11.73449966]
[1763629165768,4.77492827,143.49,143.45,5.83446421]
[1763629165943,4.08492827,143.48,143.43,16.89122372]
[1763629166149,2.33,143.47,143.43,17.56122372]
[1763629166367,2.33,143.47,143.43,10.58939248]
[1763629166566,0.69,143.46,143.43,4.75492827]
[1763629167871,6.38492827,143.47,143.43,11.72696816]
[1763629168048,2.3,143.47,143.43,11.72696816]
[1763629168759,2.3,143.47,143.43,11.05696816]
[1763629169064,2.3,143.47,143.44,4.74492827]
[1763629169269,2.3,143.47,143.44,0.66]
[1763629169467,9.27011196,143.47,143.44,0.66]
[1763629171483,9.27011196,143.47,143.44,10.24793776]
[1763629171484,2.3,143.47,143.44,10.24793776]
[1763629171860,0.66,143.49,143.45,3.2764172]
[1763629172073,1.64,143.47,143.46,2.6164172]
[1763629172268,1.64,143.47,143.46,3.2764172]
[1763629172451,1.64,143.47,143.46,2.6164172]
[1763629172656,1.64,143.47,143.45,3.2764172]
[1763629173165,1.64,143.47,143.45,2.6164172]
[1763629173365,1.64,143.47,143.46,0.66]
[1763629173758,1.64,143.47,143.46,3.2764172]
[1763629173963,7.62831395,143.51,143.46,3.2764172]
[1763629174167,1.64,143.49,143.48,2.6164172]
[1763629174593,2.3,143.49,143.47,2.6164172]
[1763629174796,2.3,143.49,143.46,2.6164172]
[1763629175077,2.3,143.49,143.46,3.2764172]
[1763629175402,2.3,143.49,143.46,10.24698375]
[1763629176653,1.64,143.49,143.47,2.6164172]
[1763629177486,0.66,143.48,143.44,16.08212889]
[1763629177779,0.66,143.48,143.44,10.24766468]
[1763629178657,7.62973269,143.48,143.45,0.66]
[1763629180978,0.66,143.47,143.43,20.7373772]
[1763629181182,1.64,143.46,143.44,0.66]
[1763629182483,1.64,143.46,143.44,3.2764172]
[1763629182682,1.64,143.46,143.44,7.63150468]
[1763629182977,0.66,143.45,143.44,6.97150468]
[1763629183181,1.64,143.46,143.44,6.97150468]
[1763629183182,2.3,143.46,143.44,6.97150468]
[1763629183363,1.64,143.46,143.44,6.97150468]
[1763629183561,2.3,143.46,143.43,25.09277382]
[1763629183866,0.66,143.45,143.42,16.08323263]
[1763629184174,0.66,143.45,143.42,13.46681543]
[1763629184484,0.66,143.45,143.42,16.08323263]
[1763629184685,9.27059063,143.46,143.42,16.08323263]
[1763629185280,9.27059063,143.46,143.42,10.24876842]
[1763629185586,9.27059063,143.46,143.43,0.66]
[1763629186383,9.27059063,143.46,143.43,7.63204143]
[1763629187686,1.64,143.46,143.43,9.58845863]
[1763629187991,1.64,143.46,143.44,3.2764172]
[1763629188363,1.64,143.46,143.45,0.66]
[1763629188558,1.64,143.46,143.44,10.24777535]
[1763629189599,1.64,143.46,143.44,9.58777535]
[1763629189776,1.64,143.46,143.44,10.24777535]
[1763629191294,1.64,143.46,143.45,3.2764172]
[1763629191503,1.64,143.47,143.45,3.2764172]
[1763629192068,2.32,143.47,143.45,3.2764172]
[1763629193392,1.64,143.47,143.45,3.2764172]
[1763629195794,1.64,143.47,143.45,0.66]
[1763629196785,1.64,143.47,143.44,9.58777535]
[1763629196786,2.32,143.47,143.44,10.24777535]
[1763629198217,1.64,143.47,143.46,2.6164172]
[1763629198576,1.64,143.47,143.46,3.2764172]
[1763629198789,1.64,143.47,143.46,0.66]
[1763629199226,1.64,143.47,143.45,3.2764172]
[1763629199399,1.64,143.47,143.46,0.66]
[1763629200335,1.64,143.47,143.44,7.63141122]
[1763629200336,0.68,143.47,143.44,7.63141122]
[1763629200615,6.96767001,143.52,143.45,0.66]
[1763629200814,0.68,143.5,143.45,6.49446421]
[1763629201030,0.68,143.5,143.44,24.40030134]
[1763629201031,0.68,143.5,143.47,2.61507233]
[1763629201193,0.68,143.5,143.46,9.10953654]
[1763629201399,0.68,143.5,143.47,0.66]
[1763629201598,0.68,143.5,143.47,3.27507233]
[1763629202035,0.68,143.5,143.47,10.24516618]
[1763629202897,0.68,143.5,143.47,3.27507233]
[1763629206416,0.68,143.5,143.47,10.24510809]
[1763629208230,7.64820679,143.51,143.48,0.66]
[1763629208430,1.64,143.49,143.48,3.27507233]
[1763629208629,1.64,143.49,143.48,0.66]
[1763629208811,1.64,143.49,143.48,3.27507233]
[1763629210019,1.64,143.49,143.48,2.61507233]
[1763629210329,1.64,143.49,143.48,3.27507233]
[1763629210930,1.64,143.49,143.46,5.83446421]
[1763629211130,0.68,143.48,143.46,2.61507233]
[1763629211331,1.64,143.49,143.46,3.27507233]
[1763629211533,1.64,143.49,143.47,2.61507233]
[1763629211830,0.68,143.5,143.47,3.27507233]
[1763629212010,1.64,143.49,143.48,0.66]
[1763629212406,1.64,143.49,143.46,5.83446421]
[1763629212731,0.68,143.48,143.46,8.44953654]
[1763629212941,0.68,143.48,143.46,5.83446421]
[1763629213117,0.68,143.48,143.45,10.2460501]
[1763629213529,2.32,143.49,143.46,3.27507233]
[1763629213907,1.64,143.49,143.47,0.66]
[1763629214122,1.64,143.48,143.45,12.80544198]
[1763629214330,2.32,143.48,143.45,3.27507233]
[1763629214632,8.60963144,143.48,143.45,3.27507233]
[1763629214802,2.32,143.48,143.45,10.24610421]
[1763629215008,2.32,143.48,143.46,2.61507233]
[1763629215513,8.60964784,143.48,143.46,3.27507233]
[1763629215826,9.28964784,143.48,143.46,2.61507233]
[1763629216013,2.32,143.48,143.46,2.61507233]
[1763629216708,18.12096,143.52,143.47,3.27507233]
[1763629216709,0.68,143.51,143.47,3.27507233]
[1763629216908,1.64,143.5,143.47,2.61507233]
[1763629217337,1.64,143.5,143.46,10.24564648]
[1763629217338,0.68,143.49,143.46,10.24564648]
[1763629218046,6.96824046,143.51,143.47,3.27507233]
[1763629218223,0.68,143.51,143.48,2.61507233]
[1763629218412,1.64,143.5,143.48,3.27507233]
[1763629219940,1.64,143.5,143.48,10.24453622]
[1763629220735,2.32,143.5,143.47,16.11951471]
[1763629221419,2.32,143.5,143.47,10.2850505]
[1763629222737,8.60865141,143.5,143.47,7.66997817]
[1763629223037,0.68,143.49,143.47,7.66997817]
[1763629224155,2.61507233,143.51,143.48,3.31507233]
[1763629224156,1.64,143.51,143.48,3.31507233]
[1763629224523,2.32,143.51,143.48,3.31507233]
[1763629225226,2.32,143.51,143.48,0.7]
[1763629226237,8.60837423,143.51,143.47,2.61507233]
[1763629226426,0.68,143.5,143.46,16.12000254]
[1763629226740,3.29507233,143.5,143.46,12.80493021]
[1763629227143,0.68,143.49,143.46,12.80493021]
[1763629227453,1.64,143.48,143.46,12.80493021]
[1763629228146,2.36,143.48,143.46,12.80493021]
[1763629228548,2.36,143.48,143.46,13.52493021]
[1763629228729,1.64,143.48,143.46,13.52493021]
[1763629229638,1.64,143.48,143.46,16.14000254]
[1763629230536,1.64,143.48,143.45,15.42043464]
[1763629230537,2.36,143.48,143.45,15.42043464]
[1763629230739,2.36,143.48,143.45,16.14043464]
[1763629231123,9.32966205,143.48,143.45,6.55446421]
[1763629231829,9.32966205,143.48,143.45,9.16953654]
[1763629232224,2.36,143.48,143.45,16.14049188]
[1763629232831,2.36,143.48,143.45,17.61216019]
[1763629234749,2.36,143.48,143.46,4.08674064]
[1763629236930,2.36,143.48,143.46,11.0572335]
[1763629237235,2.36,143.48,143.46,11.7772335]
[1763629237430,2.36,143.48,143.46,11.0572335]
[1763629237727,7.69018056,143.47,143.45,5.83446421]
[1763629237929,7.69018056,143.47,143.43,9.92120485]
[1763629238155,7.69018056,143.47,143.43,5.83446421]
[1763629238156,0.72,143.46,143.43,5.83446421]
[1763629238358,1.64,143.45,143.42,16.8936765]
[1763629238654,1.64,143.45,143.42,17.6136765]
[1763629238825,2.36,143.45,143.42,17.6136765]
[1763629239937,2.36,143.45,143.43,11.05874043]
[1763629240746,2.36,143.45,143.43,11.77874043]
[1763629241526,0.72,143.44,143.42,16.89357793]
[1763629242447,0.72,143.44,143.42,5.83446421]
[1763629243841,7.69162646,143.44,143.42,5.83446421]
[1763629244153,7.69162646,143.44,143.4,17.62621637]
[1763629244359,0.72,143.43,143.4,17.62621637]
[1763629244563,1.64,143.42,143.4,17.62621637]
[1763629244755,1.64,143.42,143.4,11.78015719]
[1763629244942,1.64,143.42,143.4,4.80674064]
[1763629245344,1.64,143.42,143.4,11.78019246]
[1763629245650,0.72,143.41,143.39,5.84605918]
[1763629245852,1.64,143.42,143.4,4.80674064]
[1763629247066,1.64,143.42,143.4,11.78022999]
[1763629247252,1.64,143.42,143.41,0.72]
[1763629247453,1.64,143.42,143.4,4.08674064]
[1763629247652,1.64,143.42,143.4,4.80674064]
[1763629247852,1.64,143.41,143.4,4.80674064]
[1763629248162,1.64,143.41,143.4,0.72]
[1763629249756,1.64,143.41,143.39,7.69385228]
[1763629249955,1.64,143.41,143.39,11.78059292]
[1763629250264,1.64,143.41,143.4,0.66]
[1763629250668,1.64,143.41,143.4,4.74674064]
[1763629250868,1.64,143.41,143.4,11.72024133]
[1763629252670,1.64,143.42,143.4,11.72024133]
[1763629252854,1.64,143.42,143.41,4.08674064]
[1763629253176,1.64,143.42,143.41,4.74674064]
[1763629255185,1.64,143.42,143.41,4.08674064]
[1763629255347,1.64,143.42,143.41,4.74674064]
[1763629255673,1.64,143.42,143.4,11.72024133]
[1763629255863,1.64,143.42,143.41,0.66]
[1763629257775,1.64,143.42,143.4,11.06024133]
[1763629258274,1.64,143.42,143.41,0.66]
[1763629258774,1.64,143.42,143.41,11.71975507]
[1763629259075,2.3,143.42,143.38,7.63412599]
[1763629259251,0.66,143.41,143.38,11.72086663]
[1763629260255,12.69938781,143.42,143.39,0.66]
[1763629260575,0.66,143.42,143.39,7.63394532]
[1763629260791,1.64,143.41,143.39,11.72068596]
[1763629261073,1.64,143.41,143.39,11.06068596]
[1763629261375,1.64,143.41,143.4,4.08674064]
[1763629261557,1.64,143.41,143.4,4.74674064]
[1763629262260,1.64,143.42,143.4,4.74674064]
[1763629262994,2.3,143.42,143.4,0.66]
[1763629263159,2.3,143.42,143.39,6.97394532]
[1763629263160,2.3,143.42,143.39,11.72068596]
[1763629263864,1.64,143.42,143.4,0.66]
[1763629264175,1.64,143.42,143.4,4.74674064]
[1763629265179,1.64,143.42,143.4,11.72006874]
[1763629265878,1.64,143.42,143.4,7.6333281]
[1763629266183,1.64,143.42,143.4,11.72006874]
[1763629266481,2.3,143.42,143.4,0.66]
[1763629266675,2.3,143.42,143.39,11.72053015]
[1763629267777,2.3,143.42,143.39,7.63378951]
[1763629267953,2.3,143.42,143.39,11.72053015]
[1763629269063,0.66,143.41,143.38,11.06106972]
[1763629269272,7.63338261,143.41,143.37,7.63480056]
[1763629269579,11.72012325,143.41,143.37,0.66]
[1763629269890,4.08674064,143.39,143.34,10.59279982]
[1763629270057,5.72674064,143.38,143.34,6.50605918]
[1763629270257,5.72674064,143.38,143.34,0.66]
[1763629270454,0.66,143.37,143.34,6.50605918]
[1763629270782,0.66,143.37,143.34,13.48238277]
[1763629270984,4.08674064,143.39,143.35,0.66]
[1763629271189,7.63338261,143.41,143.37,4.08674064]
[1763629271382,1.64,143.39,143.37,4.08674064]
[1763629271587,1.64,143.39,143.37,4.74674064]
[1763629272265,1.64,143.39,143.37,11.72164664]
[1763629272697,1.64,143.39,143.38,0.66]
[1763629274067,1.64,143.39,143.38,7.63447342]
[1763629274261,1.64,143.4,143.38,11.72121406]
[1763629274459,1.64,143.4,143.39,4.74674064]
[1763629274878,1.64,143.42,143.39,4.74674064]
[1763629275093,1.64,143.42,143.4,0.66]
[1763629275659,1.64,143.42,143.4,7.63316143]
[1763629276081,1.64,143.42,143.4,0.66]
[1763629276289,1.64,143.42,143.4,7.63344685]
[1763629276979,0.66,143.41,143.38,9.93279982]
[1763629277176,0.66,143.41,143.38,4.74674064]
[1763629277591,0.66,143.41,143.38,11.72100546]
[1763629279097,0.66,143.41,143.38,11.06100546]
[1763629280972,7.63301452,143.41,143.37,17.56765527]
[1763629281398,0.7,143.4,143.37,12.82091463]